bitfinex-derivatives/quotes_SOLF0:USTF0_20250911
["timestamp","ask_amount","ask_price","bid_price","bid_amount"]
[1757630808889,6.91,228.07,228.0,7.16]
[1757630809088,3.56099158,228.06,228.0,7.16]
[1757630809389,6.91,228.07,228.0,7.16]
[1757630809590,7.1810628,228.06,228.0,7.16]
[1757630809786,6.91,228.07,228.0,7.16]
[1757630809987,7.18115882,228.06,228.0,7.16]
[1757630810190,6.91,228.07,228.0,7.16]
[1757630810491,3.62010929,228.06,228.0,7.16]
[1757630810687,6.91,228.07,228.0,7.16]
[1757630810888,3.62010929,228.06,228.0,7.16]
[1757630811190,6.91,228.07,228.0,7.16]
[1757630811495,3.62015321,228.06,228.0,7.16]
[1757630811688,6.91,228.07,228.0,7.16]
[1757630811890,3.62015321,228.06,228.0,7.16]
[1757630812087,6.91,228.07,228.0,7.16]
[1757630812289,7.11510174,228.06,228.0,7.16]
[1757630812489,6.91,228.07,228.0,7.16]
[1757630812689,7.11523083,228.06,228.0,7.16]
[1757630812890,6.91,228.07,228.0,7.16]
[1757630813091,7.11523083,228.06,228.0,7.16]
[1757630813393,6.91,228.07,228.0,7.16]
[1757630813594,6.91,228.05,227.94,7.16]
[1757630813795,8.82085532,228.04,227.94,7.16]
[1757630814095,14.02608775,228.03,227.94,7.16]
[1757630814285,0.02788575,228.01,227.94,7.16]
[1757630823095,6.94,228.0,227.94,7.16]
[1757630823806,0.02788575,228.01,227.94,7.16]
[1757630824002,6.94,228.0,227.94,7.16]
[1757630826307,8.64522998,228.0,227.89,7.06]
[1757630826999,0.02821611,227.97,227.89,7.06]
[1757630833116,0.02821611,227.97,227.94,7.06]
[1757630833919,0.02821611,227.97,227.93,1.70522998]
[1757630834821,0.02821611,227.97,227.94,7.06]
[1757630836021,0.02821611,227.97,227.96,7.06]
[1757630846922,4.83950339,228.12,227.96,7.5]
[1757630847227,6.94,228.13,227.98,7.06]
[1757630847422,6.97,228.17,228.06,7.06]
[1757630847622,6.94,228.15,228.06,7.06]
[1757630847821,6.94,228.13,228.06,7.06]
[1757630848220,6.94,228.13,228.07,0.02961264]
[1757630856633,6.94,228.13,228.08,7.08]
[1757630856834,6.94,228.13,228.07,7.10961264]
[1757630858234,6.94,228.21,228.07,7.10961264]
[1757630858539,9.60304694,228.19,228.04,7.08]
[1757630858740,6.94,228.17,228.04,7.08]
[1757630858938,6.94,228.15,228.12,0.02879817]
[1757630859136,6.94,228.13,228.12,0.02879817]
[1757630862535,6.94,228.2,228.12,0.02879817]
[1757630862740,6.94,228.18,228.12,0.02879817]
[1757630862930,6.94,228.16,228.12,0.02879817]
[1757630863133,6.94,228.2,228.12,0.02879817]
[1757630863329,6.94,228.18,228.12,0.02879817]
[1757630868033,6.94,228.26,228.13,7.08]
[1757630868244,6.94,228.24,228.13,7.08]
[1757630868443,67.83196115,228.27,228.13,7.08]
[1757630868444,6.94,228.22,228.13,7.08]
[1757630868632,6.94,228.22,228.16,0.03158288]
[1757630869034,6.94,228.22,228.16,7.11158288]
[1757630875041,9.60304694,228.22,228.16,0.03158288]
[1757630876049,2.66304694,228.18,228.16,0.03158288]
[1757630876248,6.96,228.17,228.16,0.03158288]
[1757630878948,18.31269167,228.29,228.16,0.03158288]
[1757630879139,6.96,228.24,228.16,0.03158288]
[1757630883646,6.96,228.2,228.16,0.03158288]
[1757630885753,6.96,228.2,228.04,95.50221503]
[1757630885754,6.96,228.16,228.06,7.58]
[1757630886949,6.96,228.16,227.98,43.96]
[1757630886950,6.5063805,228.15,228.01,7.58]
[1757630887148,0.03030959,228.13,228.01,7.58]
[1757630887350,6.96,228.12,228.01,7.58]
[1757630888744,9.62304694,228.12,228.01,7.58]
[1757630889154,6.96,228.12,228.01,7.58]
[1757630889352,0.03030959,228.13,228.01,7.58]
[1757630890559,0.03030959,228.13,228.05,7.58]
[1757630893262,6.99030959,228.13,228.05,7.58]
[1757630894259,10.43852174,228.12,227.99,7.58]
[1757630894554,6.96,228.12,227.99,7.58]
[1757630894762,6.96,228.1,227.99,7.58]
[1757630894958,0.03347958,228.08,227.99,7.58]
[1757630900760,6.96,228.07,227.99,7.58]
[1757630902956,9.62304694,228.07,227.99,7.58]
[1757630904571,6.96,228.06,227.91,7.58]
[1757630905166,0.03045561,228.01,227.91,7.58]
[1757630909679,6.95,228.0,227.91,7.58]
[1757630914581,1.70698933,227.98,227.91,7.58]
[1757630914781,6.95,227.97,227.91,7.58]
[1757630915377,0.0292961,227.96,227.83,82.61898933]
[1757630915581,0.0292961,227.96,227.84,11.682]
[1757630915782,0.0292961,227.96,227.84,7.29]
[1757630916281,0.0292961,227.96,227.86,1.70698933]
[1757630916483,0.00115764,227.96,227.95,7.29]
[1757630919381,0.00115764,227.96,227.95,8.99698933]
[1757630920685,20.52,228.12,227.96,7.29]
[1757630920686,6.96,228.12,227.96,7.29]
[1757630920889,6.96,228.12,228.02,7.29]
[1757630921890,6.96,228.12,228.05,0.03047749]
[1757630928777,6.96,228.12,228.06,7.29]
[1757630930093,6.96,228.18,228.06,7.29]
[1757630930285,8.20637529,228.17,228.06,7.29]
[1757630930484,8.66698933,228.18,228.06,7.29]
[1757630930789,6.50000177,228.17,228.09,7.32133277]
[1757630930987,6.96,228.18,228.09,7.32133277]
[1757630931190,6.98,228.16,228.09,7.32133277]
[1757630937393,1.70698933,228.14,228.1,7.29]
[1757630937589,1.70698933,228.14,228.1,7.16]
[1757630938191,8.66698933,228.14,228.1,7.16]
[1757630938992,8.66698933,228.14,228.09,0.03133277]
[1757630939493,8.66698933,228.14,228.1,7.16]
[1757630939893,8.66698933,228.14,228.09,0.03133277]
[1757630940486,8.66698933,228.14,228.1,7.16]
[1757630940694,8.66698933,228.14,228.09,0.03133277]
[1757630940992,8.66698933,228.14,228.1,7.16]
[1757630941385,1.70698933,228.14,228.1,7.16]
[1757630941590,6.96,228.13,228.1,7.16]
[1757630942893,1.70698933,228.14,228.1,7.16]
[1757630943100,6.96,228.13,228.1,7.16]
[1757630943889,6.96,228.1,228.09,0.03133277]
[1757630944897,6.96,228.13,228.09,0.03133277]
[1757630945198,1.70698933,228.1,228.09,0.03133277]
[1757630945791,8.66698933,228.1,228.09,0.03133277]
[1757630946594,6.96,228.21,228.09,7.19133277]
[1757630946800,1.70698933,228.14,228.1,7.16]
[1757630947395,1.70698933,228.14,228.1,0.02764686]
[1757630947601,1.70698933,228.14,228.11,7.16]
[1757630948791,8.66698933,228.15,228.11,7.16]
[1757630950893,6.96,228.21,228.11,7.16]
[1757630951095,1.70698933,228.2,228.11,7.16]
[1757630952401,1.70698933,228.17,228.11,7.16]
[1757630953502,8.66698933,228.17,228.11,7.16]
[1757630956103,6.96,228.17,228.11,7.16]
[1757630962709,6.96,228.19,228.11,7.16]
[1757630963304,1.70698933,228.2,228.07,1.70698933]
[1757630963305,1.70698933,228.18,228.13,0.02796724]
[1757630963505,6.96,228.17,228.13,7.18796724]
[1757630963898,6.96,228.17,228.13,0.02796724]
[1757630964104,6.96,228.17,228.14,7.16]
[1757630967910,6.93,228.18,228.14,7.16]
[1757630968105,1.70698933,228.19,228.14,7.16]
[1757630968410,6.93,228.17,228.13,0.02796724]
[1757630968610,6.93,228.18,228.13,0.02796724]
[1757630968803,3.04846872,228.17,228.13,0.02796724]
[1757630969001,6.93,228.15,228.13,0.02796724]
[1757630969203,3.04910008,228.14,228.13,0.02796724]
[1757630969406,9.97910008,228.14,228.13,0.02796724]
[1757630969814,13.45319272,228.14,228.13,0.02796724]
[1757630971714,13.45319272,228.14,228.03,96.31116667]
[1757630971907,6.93,228.12,228.05,7.24]
[1757630972916,6.93,228.2,228.05,7.24]
[1757630973117,0.02857976,228.11,228.05,7.24]
[1757630977721,0.00061252,228.11,228.06,0.02877204]
[1757630977920,0.00061252,228.11,228.07,7.24]
[1757630978419,0.00061252,228.11,228.07,7.68]
[1757630979320,0.00061252,228.11,228.07,7.24]
[1757630981017,13.37457178,228.23,228.07,7.24]
[1757630981223,9.90575048,228.22,228.08,7.24]
[1757630981522,6.52745986,228.21,228.08,7.24]
[1757630981817,3.05126669,228.2,228.08,7.24]
[1757630982021,6.93,228.24,228.08,7.24]
[1757630982221,6.93,228.22,228.08,7.24]
[1757630982423,6.52583877,228.21,228.13,7.24]
[1757630982622,3.05053436,228.2,228.13,7.24]
[1757630982823,6.93,228.22,228.13,7.24]
[1757630983023,6.52472949,228.21,228.13,7.24]
[1757630983226,6.93,228.22,228.13,7.24]
[1757630983415,13.0837904,228.26,228.13,7.24]
[1757630983416,6.93,228.2,228.13,7.24]
[1757630984025,6.93,228.2,228.14,0.0328251]
[1757630987820,6.93,228.2,228.14,7.2728251]
[1757630989425,6.93,228.24,228.14,7.2728251]
[1757630989621,6.93,228.22,228.14,7.2728251]
[1757630989817,6.93,228.2,228.14,7.24]
[1757630990018,2.6629318,228.27,228.16,0.02964939]
[1757630990222,16.82751706,228.26,228.16,0.02964939]
[1757630990524,6.93,228.24,228.16,0.02964939]
[1757630990727,6.93,228.22,228.16,0.02964939]
[1757630991028,6.93,228.2,228.16,0.02964939]
[1757630991224,3.04935659,228.19,228.16,0.02964939]
[1757630991426,6.93,228.2,228.16,0.02964939]
[1757630991723,6.93,228.18,228.16,0.02964939]
[1757630991923,2.6629318,228.23,228.16,0.02964939]
[1757630992124,16.82458585,228.22,228.16,0.02964939]
[1757630992323,6.93,228.2,228.16,0.02964939]
[1757630992525,3.0494403,228.19,228.16,0.02964939]
[1757630992729,6.93,228.22,228.16,0.02964939]
[1757630992924,6.93,228.2,228.16,0.02964939]
[1757630993126,6.51820325,228.19,228.16,0.02964939]
[1757630993322,6.93,228.22,228.16,0.02964939]
[1757630993522,6.93,228.2,228.16,0.02964939]
[1757630993723,6.51845762,228.19,228.16,0.02964939]
[1757630993923,6.93,228.22,228.16,0.02964939]
[1757630994226,6.93,228.2,228.16,0.02964939]
[1757630994427,6.51845762,228.19,228.16,0.02964939]
[1757630994619,6.93,228.22,228.16,0.02964939]
[1757630994818,6.93,228.2,228.16,0.02964939]
[1757630995018,6.93,228.18,228.16,0.02964939]
[1757630995220,6.93,228.22,228.16,0.02964939]
[1757630995420,9.8953613,228.21,228.16,0.02964939]
[1757630995623,6.51873485,228.2,228.16,0.02964939]
[1757630995928,6.51873485,228.19,228.16,0.02964939]
[1757630996128,6.93,228.22,228.16,0.02964939]
[1757630996330,6.93,228.2,228.16,0.02964939]
[1757630996527,6.51866258,228.19,228.16,0.02964939]
[1757630996828,6.93,228.22,228.16,0.02964939]
[1757630997031,6.93,228.2,228.16,0.02964939]
[1757630997226,6.51866258,228.19,228.16,0.02964939]
[1757630997421,6.83,228.22,228.16,0.02964939]
[1757630997628,6.83,228.2,228.16,0.02964939]
[1757630997930,6.83,228.18,228.16,0.02964939]
[1757630998129,6.83,228.22,228.16,0.02964939]
[1757630998332,6.83,228.2,228.16,0.02964939]
[1757630998521,6.51862141,228.19,228.16,0.02964939]
[1757630998727,6.83,228.22,228.16,0.02964939]
[1757630998925,6.83,228.2,228.16,0.02964939]
[1757630999119,6.51862141,228.19,228.16,0.02964939]
[1757630999322,6.83,228.22,228.16,0.02964939]
[1757630999522,6.83,228.2,228.16,0.02964939]
[1757630999828,6.83,228.18,228.16,0.02964939]
[1757631000028,6.83,228.22,228.16,0.02964939]
[1757631000228,6.51866097,228.21,228.16,0.02964939]
[1757631000429,6.83,228.19,228.16,0.02964939]
[1757631000623,3.049664,228.18,228.16,0.02964939]
[1757631000829,6.83,228.17,228.16,0.02964939]
[1757631001432,9.8798279,228.17,228.16,0.02964939]
[1757631001735,9.87985679,228.17,228.16,0.02964939]
[1757631001923,13.34925498,228.17,228.16,0.02964939]
[1757631002128,122.16925498,228.17,228.06,7.07]
[1757631002433,6.83,228.13,228.06,7.07]
[1757631003435,0.0303053,228.12,228.06,7.07]
[1757631018241,0.0303053,228.12,228.07,7.07]
[1757631020844,0.0303053,228.12,228.05,9.7329318]
[1757631021051,0.0303053,228.12,228.05,7.07]
[1757631022053,0.0303053,228.12,228.06,7.07]
[1757631025355,0.0303053,228.12,228.07,7.07]
[1757631025550,0.0303053,228.12,228.05,7.07]
[1757631025750,0.0303053,228.12,228.06,108.32]
[1757631025952,0.0303053,228.12,228.07,7.07]
[1757631026853,0.0303053,228.12,228.06,108.32]
[1757631027056,0.0303053,228.12,228.07,7.07]
[1757631027245,0.0303053,228.12,228.06,108.32]
[1757631027553,0.0303053,228.12,228.07,6.87]
[1757631027749,0.0303053,228.12,228.06,108.32]
[1757631028356,0.0303053,228.12,228.07,6.87]
[1757631029053,0.0303053,228.12,228.06,108.32]
[1757631029252,0.0303053,228.12,228.07,6.87]
[1757631031154,0.0303053,228.12,228.09,6.87]
[1757631035064,0.0303053,228.12,228.08,2.6629318]
[1757631035565,0.0303053,228.12,228.09,115.15]
[1757631035760,0.0303053,228.12,228.09,108.28]
[1757631035960,0.0303053,228.12,228.1,6.87]
[1757631036259,0.0303053,228.12,228.09,108.28]
[1757631036462,0.0303053,228.12,228.1,6.87]
[1757631036763,0.0303053,228.12,228.09,108.28]
[1757631037067,0.0303053,228.12,228.1,6.87]
[1757631037260,6.97,228.26,228.1,6.87]
[1757631037459,9.92611716,228.25,228.1,6.87]
[1757631037654,16.89611716,228.24,228.1,6.87]
[1757631037857,6.54599533,228.23,228.1,6.87]
[1757631038059,6.54599533,228.22,228.12,6.87]
[1757631038260,6.97,228.24,228.12,6.87]
[1757631038461,6.5445021,228.23,228.16,6.87]
[1757631038664,6.97,228.24,228.16,6.87]
[1757631038966,6.97,228.22,228.16,6.87]
[1757631039160,6.97,228.22,228.15,0.0337449]
[1757631039360,1.70244525,228.25,228.15,14.44]
[1757631039558,6.97,228.22,228.16,0.03067428]
[1757631041463,3.05237989,228.21,228.17,6.87]
[1757631041662,6.97,228.24,228.17,6.87]
[1757631041863,3.05211345,228.23,228.17,6.87]
[1757631042058,6.97,228.24,228.18,0.03246006]
[1757631042264,6.97,228.22,228.18,6.90246006]
[1757631043274,6.97,228.23,228.18,0.03246006]
[1757631043467,6.97,228.21,228.18,0.03246006]
[1757631043667,6.97,228.23,228.18,0.03246006]
[1757631043868,6.97,228.21,228.18,0.03246006]
[1757631044067,6.97,228.23,228.18,0.03246006]
[1757631044267,6.53940279,228.22,228.18,0.03246006]
[1757631044468,6.97,228.23,228.18,0.03246006]
[1757631044668,6.53881953,228.22,228.18,0.03246006]
[1757631044870,6.97,228.23,228.18,0.03246006]
[1757631045171,6.97,228.21,228.18,0.03246006]
[1757631045370,6.97,228.23,228.18,0.03246006]
[1757631045573,6.53850537,228.22,228.18,0.03246006]
[1757631045761,6.97,228.23,228.18,0.03246006]
[1757631045966,6.97,228.21,228.18,0.03246006]
[1757631046161,6.97,228.23,228.18,0.03246006]
[1757631046367,6.97,228.21,228.18,0.03246006]
[1757631046665,6.97,228.23,228.18,0.03246006]
[1757631046868,6.97,228.21,228.18,0.03246006]
[1757631047066,1.70244525,228.24,228.18,0.03246006]
[1757631047272,13.5057378,228.23,228.18,0.03246006]
[1757631047472,6.97,228.21,228.18,0.03246006]
[1757631047975,8.67244525,228.21,228.18,0.03246006]
[1757631048172,6.53669869,228.2,228.1,6.87]
[1757631048370,6.97,228.17,228.1,6.87]
[1757631049465,0.03026732,228.16,228.1,6.87]
[1757631049668,6.97,228.15,228.06,41.87244525]
[1757631050373,6.97,228.15,228.06,40.17]
[1757631050575,6.97,228.15,228.06,6.87]
[1757631053978,0.03026732,228.16,228.1,1.70244525]
[1757631054172,0.03026732,228.16,228.11,6.87]
[1757631054477,0.03026732,228.16,228.14,6.87]
[1757631054672,0.03026732,228.16,228.13,1.70244525]
[1757631055073,0.03026732,228.16,228.14,6.87]
[1757631055277,0.03026732,228.16,228.13,1.70244525]
[1757631055672,0.03026732,228.16,228.14,6.87]
[1757631059973,0.03026732,228.16,228.14,6.97]
[1757631060880,0.03026732,228.16,228.13,1.70244525]
[1757631061074,0.03026732,228.16,228.14,6.97]
[1757631063685,0.03026732,228.16,228.13,1.70244525]
[1757631064179,0.03026732,228.16,228.14,6.97]
[1757631064385,0.03026732,228.16,228.13,1.70244525]
[1757631065478,0.03026732,228.16,228.14,6.97]
[1757631065684,0.03026732,228.16,228.13,1.70244525]
[1757631065884,0.03026732,228.16,228.14,6.97]
[1757631066283,0.03026732,228.16,228.13,1.70244525]
[1757631066484,0.03026732,228.16,228.14,6.97]
[1757631066683,0.03026732,228.16,228.13,1.70244525]
[1757631067079,0.03026732,228.16,228.14,6.97]
[1757631067382,0.03026732,228.16,228.13,1.70244525]
[1757631067582,7.0,228.28,228.14,6.97]
[1757631067882,7.0,228.26,228.18,8.67244525]
[1757631068082,6.53627223,228.25,228.18,8.67244525]
[1757631068285,6.53627223,228.24,228.18,8.67244525]
[1757631068483,10.05018391,228.23,228.19,6.97]
[1757631068680,6.5361136,228.22,228.13,6.97]
[1757631068884,6.5361136,228.21,228.19,0.02945005]
[1757631069081,7.0,228.26,228.19,0.02945005]
[1757631069276,7.0,228.24,228.19,0.02945005]
[1757631069477,7.0,228.22,228.19,0.02945005]
[1757631069679,7.0,228.2,228.19,0.02945005]
[1757631070386,13.53772567,228.2,228.19,0.02945005]
[1757631071587,13.53772567,228.2,228.13,6.97]
[1757631071787,0.02889925,228.22,228.13,6.97]
[1757631083407,0.02889925,228.22,228.13,48.03]
[1757631083706,0.02889925,228.22,228.14,6.97]
[1757631095218,6.97,228.21,228.14,6.97]
[1757631095519,3.05462116,228.2,228.14,6.97]
[1757631095717,6.97,228.21,228.14,6.97]
[1757631095918,3.05467902,228.2,228.14,6.97]
[1757631096219,6.97,228.21,228.14,6.97]
[1757631096408,6.54340191,228.2,228.14,6.97]
[1757631096610,6.97,228.21,228.14,6.97]
[1757631096814,6.54395442,228.2,228.14,6.97]
[1757631097109,6.97,228.21,228.14,6.97]
[1757631097419,6.54395442,228.2,228.14,6.97]
[1757631097621,6.97,228.21,228.14,6.97]
[1757631097816,0.02889925,228.22,228.14,6.97]
[1757631106327,0.02889925,228.22,228.1,7.25829825]
[1757631106524,0.02889925,228.22,228.12,6.85]
[1757631108131,0.02889925,228.22,228.14,6.85]
[1757631112429,7.00889925,228.22,228.14,6.85]
[1757631112629,6.55028455,228.21,228.14,6.85]
[1757631112828,6.98,228.21,228.14,6.85]
[1757631115034,0.02889925,228.22,228.14,6.85]
[1757631115229,3.05708417,228.21,228.14,6.85]
[1757631115434,0.02889925,228.22,228.14,6.85]
[1757631115635,6.55100011,228.21,228.14,6.85]
[1757631115834,0.02889925,228.22,228.14,6.85]
[1757631116134,6.55100011,228.21,228.14,6.85]
[1757631116331,0.02889925,228.22,228.14,6.85]
[1757631116530,6.55185638,228.21,228.14,6.85]
[1757631116731,0.02889925,228.22,228.14,6.85]
[1757631117034,6.55191796,228.21,228.14,6.85]
[1757631117226,3.05778294,228.2,228.14,6.85]
[1757631117431,7.00889925,228.22,228.14,6.85]
[1757631117631,6.55174353,228.21,228.14,6.85]
[1757631117831,3.05770302,228.2,228.14,6.85]
[1757631118035,7.00889925,228.22,228.14,6.85]
[1757631118225,6.55174328,228.21,228.14,6.85]
[1757631118430,7.00889925,228.22,228.14,6.85]
[1757631118639,6.55157475,228.21,228.14,6.85]
[1757631118831,7.00889925,228.22,228.14,6.85]
[1757631119031,6.55157475,228.21,228.14,6.85]
[1757631119329,7.00889925,228.22,228.14,6.85]
[1757631119627,6.55129194,228.21,228.14,6.85]
[1757631119832,7.00889925,228.22,228.14,6.85]
[1757631120034,6.55120312,228.21,228.14,6.85]
[1757631120235,7.00889925,228.22,228.14,6.85]
[1757631120435,6.55123317,228.21,228.14,6.85]
[1757631120641,7.00889925,228.22,228.14,6.85]
[1757631120936,6.55126994,228.21,228.14,6.85]
[1757631121128,7.00889925,228.22,228.14,6.85]
[1757631121331,6.55122943,228.21,228.14,6.85]
[1757631121531,7.00889925,228.22,228.14,6.85]
[1757631121732,6.55114518,228.21,228.14,6.85]
[1757631121932,7.00889925,228.22,228.14,6.85]
[1757631122234,6.55114518,228.21,228.14,6.85]
[1757631122435,7.00889925,228.22,228.14,6.85]
[1757631122632,6.55104215,228.21,228.14,6.85]
[1757631122836,7.00889925,228.22,228.14,6.85]
[1757631123036,6.55104215,228.21,228.14,6.85]
[1757631123237,7.00889925,228.22,228.14,6.85]
[1757631123437,6.55100087,228.21,228.14,6.85]
[1757631123637,7.00889925,228.22,228.14,6.85]
[1757631123839,6.55090023,228.21,228.14,6.85]
[1757631124035,7.00889925,228.22,228.14,6.85]
[1757631124239,6.55090023,228.21,228.14,6.85]
[1757631124436,7.00889925,228.22,228.14,6.85]
[1757631124736,6.55083471,228.21,228.14,6.85]
[1757631124937,7.00889925,228.22,228.14,6.85]
[1757631125235,6.55083469,228.21,228.14,6.85]
[1757631125435,7.00889925,228.22,228.14,6.85]
[1757631125736,6.55078926,228.21,228.14,6.85]
[1757631125937,7.00889925,228.22,228.14,6.85]
[1757631126133,6.55078898,228.21,228.14,6.85]
[1757631126340,7.00889925,228.22,228.14,6.85]
[1757631126640,6.55076294,228.21,228.14,6.85]
[1757631126835,7.00889925,228.22,228.14,6.85]
[1757631127142,6.93,228.2,228.09,7.38]
[1757631127338,6.93,228.18,228.09,7.38]
[1757631127539,6.93,228.16,228.09,7.38]
[1757631127739,6.95916994,228.16,228.09,7.38]
[1757631127935,0.02916994,228.16,228.09,7.38]
[1757631130534,0.02916994,228.16,228.11,7.38]
[1757631130739,0.02916994,228.16,228.1,81.5]
[1757631131241,0.02916994,228.16,228.11,7.38]
[1757631131831,0.02916994,228.16,228.07,7.25829825]
[1757631132037,0.02916994,228.16,228.08,21.62]
[1757631132239,0.02916994,228.16,228.09,2.66070244]
[1757631132434,0.02916994,228.16,228.1,7.38]
[1757631134542,0.02916994,228.16,228.11,7.38]
[1757631136546,0.02916994,228.16,228.11,10.04070244]
[1757631136943,0.02916994,228.16,228.12,7.38]
[1757631137444,0.02916994,228.16,228.13,107.98]
[1757631137645,0.02916994,228.16,228.14,7.38]
[1757631137945,0.02916994,228.16,228.13,107.98]
[1757631138246,0.02916994,228.16,228.14,7.38]
[1757631139848,0.02916994,228.16,228.13,107.98]
[1757631140246,0.02916994,228.16,228.14,7.38]
[1757631140749,0.02916994,228.16,228.13,107.98]
[1757631141350,0.02916994,228.16,228.14,7.38]
[1757631141542,0.02916994,228.16,228.13,107.98]
[1757631142549,0.02916994,228.16,228.14,7.38]
[1757631142946,0.02916994,228.16,228.13,107.98]
[1757631143549,0.02916994,228.16,228.14,7.38]
[1757631143747,0.02916994,228.16,228.13,107.98]
[1757631144552,0.02916994,228.16,228.14,7.38]
[1757631145056,0.02916994,228.16,228.13,107.98]
[1757631145250,0.02916994,228.16,228.14,7.38]
[1757631145645,0.02916994,228.16,228.13,107.98]
[1757631145849,0.02916994,228.16,228.14,7.38]
[1757631146050,0.02916994,228.16,228.13,107.98]
[1757631146250,0.02916994,228.16,228.14,7.38]
[1757631146847,0.02916994,228.16,228.15,115.32]
[1757631151554,0.02916994,228.16,228.11,7.45]
[1757631151764,0.02916994,228.16,228.1,7.45]
[1757631151949,6.98,228.15,228.11,107.92]
[1757631152155,0.02916994,228.16,228.11,107.92]
[1757631152356,0.02916994,228.16,228.12,7.45]
[1757631152762,0.02916994,228.16,228.11,107.92]
[1757631152964,0.02916994,228.16,228.12,7.45]
[1757631153359,0.02916994,228.16,228.11,107.92]
[1757631153765,0.02916994,228.16,228.12,7.45]
[1757631154268,0.02916994,228.16,228.11,107.92]
[1757631154465,0.02916994,228.16,228.12,7.45]
[1757631154670,0.02916994,228.16,228.11,107.92]
[1757631154869,0.02916994,228.16,228.12,7.45]
[1757631155170,0.02916994,228.16,228.11,107.92]
[1757631155373,0.02916994,228.16,228.12,7.45]
[1757631155562,0.02916994,228.16,228.13,7.45]
[1757631156472,0.02916994,228.16,228.14,107.92]
[1757631156676,6.98,228.15,228.14,107.92]
[1757631158278,0.02916994,228.16,228.15,7.45]
[1757631176183,0.02916994,228.16,228.11,2.0]
[1757631176483,7.01916994,228.16,228.12,7.45]
[1757631176678,7.01916994,228.16,228.12,115.31]
[1757631177476,0.02916994,228.16,228.12,107.86]
[1757631178079,6.99,228.15,228.12,107.86]
[1757631178679,0.02916994,228.16,228.12,107.86]
[1757631178879,6.99,228.15,228.12,107.86]
[1757631179376,0.02916994,228.16,228.12,107.86]
[1757631180087,6.99,228.15,228.12,107.86]
[1757631180486,0.02916994,228.16,228.12,107.86]
[1757631180786,3.06507365,228.15,228.12,6.97]
[1757631180985,3.06507365,228.15,228.11,2.0]
[1757631180986,0.02916994,228.16,228.11,2.0]
[1757631181177,0.02916994,228.16,228.12,107.86]
[1757631181379,0.02916994,228.16,228.12,109.56256221]
[1757631182477,0.02916994,228.16,228.13,6.97]
[1757631183384,0.02916994,228.16,228.12,107.86]
[1757631183578,7.01916994,228.16,228.13,6.97]
[1757631188487,0.02916994,228.16,228.13,6.97]
[1757631188688,0.02916994,228.16,228.12,107.86]
[1757631189191,0.02916994,228.16,228.13,6.97]
[1757631189392,0.02916994,228.16,228.12,107.86]
[1757631189690,0.02916994,228.16,228.13,6.97]
[1757631189989,0.02916994,228.16,228.12,107.86]
[1757631190390,0.02916994,228.16,228.13,6.97]
[1757631190987,0.02916994,228.16,228.12,107.86]
[1757631191187,0.02916994,228.16,228.13,6.97]
[1757631191388,0.02916994,228.16,228.12,6.97]
[1757631191588,0.02916994,228.16,228.13,6.97]
[1757631192192,0.02916994,228.16,228.12,107.84]
[1757631192392,0.02916994,228.16,228.13,6.97]
[1757631193092,0.02916994,228.16,228.12,107.84]
[1757631193591,0.02916994,228.16,228.13,6.97]
[1757631194293,7.01916994,228.16,228.13,6.97]
[1757631194494,6.99,228.15,228.13,6.97]
[1757631195091,6.99,228.15,228.12,107.84]
[1757631195391,0.02916994,228.16,228.13,6.97]